bitfinex/quotes_BTCUSD_20230114
["timestamp","ask_amount","ask_price","bid_price","bid_amount"]
[1673713429860,0.479581,20852.0,20844.0,2.08246169]
[1673713430159,0.479581,20852.0,20845.0,0.19072595]
[1673713430419,0.479581,20852.0,20846.0,0.19072595]
[1673713430664,0.479581,20852.0,20847.0,0.19072595]
[1673713430903,0.479581,20852.0,20848.0,0.19072595]
[1673713431666,0.479581,20852.0,20846.0,0.64278674]
[1673713431917,0.479581,20852.0,20847.0,0.29072595]
[1673713432173,0.479565,20853.0,20847.0,0.80471269]
[1673713432416,0.479565,20853.0,20848.0,0.19072595]
[1673713434227,0.959112,20853.0,20848.0,0.19072595]
[1673713434473,0.959112,20853.0,20846.0,1.12249374]
[1673713434719,0.959112,20853.0,20846.0,0.31952595]
[1673713434964,1.14298089,20853.0,20846.0,0.31952595]
[1673713435232,0.3,20852.0,20846.0,0.31952595]
[1673713435516,1.438803,20851.0,20846.0,0.31952595]
[1673713435763,1.438803,20851.0,20844.0,2.50008074]
[1673713435764,1.438803,20851.0,20844.0,0.898]
[1673713436007,1.438803,20851.0,20844.0,1.08872595]
[1673713436552,1.438803,20851.0,20845.0,0.19072595]
[1673713436797,1.438803,20851.0,20846.0,0.19072595]
[1673713440546,0.3,20850.0,20846.0,0.19072595]
[1673713440795,1.438803,20851.0,20844.0,0.898]
[1673713440796,1.438929,20849.0,20844.0,0.898]
[1673713441310,1.438929,20849.0,20842.0,0.2287]
[1673713441563,1.438929,20849.0,20842.0,0.19072595]
[1673713441564,1.567329,20849.0,20842.0,0.19072595]
[1673713441824,0.3,20848.0,20842.0,0.19072595]
[1673713442072,1.439109,20847.0,20842.0,0.19072595]
[1673713442332,1.439109,20847.0,20841.0,0.8695]
[1673713442581,1.439109,20847.0,20841.0,1.06022595]
[1673713443076,1.439109,20847.0,20843.0,0.1]
[1673713443316,1.439109,20847.0,20843.0,0.29072595]
[1673713443571,1.439109,20847.0,20843.0,0.41952595]
[1673713443572,0.959406,20847.0,20843.0,0.41952595]
[1673713444065,0.959406,20847.0,20843.0,1.37907795]
[1673713444066,0.479703,20847.0,20843.0,1.37907795]
[1673713444347,0.479656,20849.0,20844.0,0.319915]
[1673713444604,3.155573,20852.0,20846.0,0.735599]
[1673713444849,0.479573,20852.0,20849.0,0.338071]
[1673713445113,0.479563,20853.0,20850.0,0.51064095]
[1673713445417,2.69140227,20857.0,20851.0,0.51064095]
[1673713445418,0.479487,20856.0,20851.0,0.51064095]
[1673713445612,0.479487,20856.0,20852.0,0.19072595]
[1673713445879,0.479487,20856.0,20853.0,0.19072595]
[1673713446367,0.479487,20856.0,20854.0,0.0005137]
[1673713447383,0.01540227,20857.0,20855.0,0.31872595]
[1673713447635,0.01540227,20857.0,20856.0,0.448715]
[1673713448001,0.01540227,20857.0,20856.0,0.319915]
[1673713448188,0.01540227,20857.0,20854.0,0.51450044]
[1673713448426,0.01540227,20857.0,20855.0,0.319915]
[1673713448689,0.01540227,20857.0,20856.0,0.209008]
[1673713449460,0.01540227,20857.0,20856.0,1.43423564]
[1673713449707,0.01540227,20857.0,20856.0,1.11015706]
[1673713449708,1e-08,20857.0,20856.0,1.11015706]
[1673713449959,1e-08,20857.0,20856.0,1.9326438]
[1673713450218,0.0113734,20858.0,20857.0,0.07765999]
[1673713450489,0.0113734,20858.0,20857.0,1.94838373]
[1673713450738,0.0113734,20858.0,20857.0,1.91958373]
[1673713450992,0.0113734,20858.0,20857.0,1.61958373]
[1673713451255,0.0113734,20858.0,20857.0,1.91958373]
[1673713451518,3.4e-06,20858.0,20857.0,3.04988779]
[1673713451767,0.01460216,20860.0,20857.0,3.04988779]
[1673713451768,0.01460216,20860.0,20859.0,0.1]
[1673713452058,0.01460216,20860.0,20859.0,0.57715]
[1673713452280,0.01460216,20860.0,20858.0,0.208981]
[1673713452525,0.01460216,20860.0,20859.0,0.319849]
[1673713452785,0.01460216,20860.0,20857.0,0.10005999]
[1673713453050,0.49398816,20860.0,20857.0,5.999e-05]
[1673713453298,1.10147416,20860.0,20857.0,5.999e-05]
[1673713453832,0.97337416,20860.0,20857.0,5.999e-05]
[1673713455359,0.1288,20858.0,20857.0,5.999e-05]
[1673713455778,1.667096,20858.0,20857.0,5.999e-05]
[1673713455780,1.567096,20858.0,20857.0,5.999e-05]
[1673713456182,0.49398816,20860.0,20857.0,0.07765999]
[1673713456396,0.49398816,20860.0,20857.0,0.19078594]
[1673713456840,0.49398816,20860.0,20857.0,5.999e-05]
[1673713458189,0.01460216,20860.0,20857.0,5.999e-05]
[1673713458456,0.01460216,20860.0,20859.0,0.1281]
[1673713458676,0.01460216,20860.0,20859.0,0.319915]
[1673713458893,0.01460216,20860.0,20857.0,5.999e-05]
[1673713459321,0.01460216,20860.0,20858.0,0.319915]
[1673713459810,0.01460216,20860.0,20857.0,5.999e-05]
[1673713460243,0.49399616,20860.0,20857.0,5.999e-05]
[1673713462489,0.2288,20859.0,20857.0,5.999e-05]
[1673713462700,1.866296,20858.0,20857.0,5.999e-05]
[1673713463560,2.007926,20858.0,20857.0,5.999e-05]
[1673713464061,2.135926,20858.0,20857.0,5.999e-05]
[1673713465102,0.1,20857.0,20846.0,0.43220474]
[1673713465357,2.046923,20854.0,20844.0,1.0568]
[1673713465602,0.81398674,20853.0,20844.0,1.0568]
[1673713465869,1.438815,20851.0,20844.0,1.24752595]
[1673713466133,0.959206,20851.0,20845.0,0.19072595]
[1673713466386,0.959206,20851.0,20845.0,0.33339008]
[1673713466641,0.959206,20851.0,20845.0,0.29072595]
[1673713467664,0.959206,20851.0,20845.0,0.19072595]
[1673713467912,0.959206,20851.0,20844.0,1.19946413]
[1673713468179,0.959206,20851.0,20844.0,1.11872595]
[1673713468717,0.959206,20851.0,20845.0,0.19072595]
[1673713468954,0.479565,20853.0,20846.0,0.66792764]
[1673713469201,0.479565,20853.0,20848.0,0.1288]
[1673713469452,0.479547,20853.0,20849.0,0.39994395]
[1673713469702,0.479527,20854.0,20850.0,0.51059195]
[1673713469952,0.479527,20854.0,20851.0,0.19072595]
[1673713470201,0.479515,20855.0,20848.0,0.1288]
[1673713470202,0.479515,20855.0,20852.0,0.19072595]
[1673713470448,0.47948,20856.0,20852.0,0.19072595]
[1673713470695,0.479509,20855.0,20849.0,1.38906003]
[1673713470952,0.479509,20855.0,20849.0,0.9576]
[1673713471237,0.47948,20856.0,20849.0,0.9576]
[1673713471462,0.47948,20856.0,20849.0,1.0863]
[1673713472274,0.47948,20856.0,20849.0,1.565935]
[1673713472535,0.479463,20857.0,20851.0,0.1288]
[1673713472781,3.155446,20858.0,20852.0,0.66792764]
[1673713472782,0.479446,20858.0,20852.0,0.66792764]
[1673713473037,0.01460216,20860.0,20856.0,0.1288]
[1673713473279,0.01460216,20860.0,20857.0,0.87920495]
[1673713473579,0.01460216,20860.0,20858.0,0.319831]
[1673713473789,0.01460216,20860.0,20856.0,0.03579849]
[1673713473790,0.49399216,20860.0,20856.0,0.03579849]
[1673713474041,0.49399216,20860.0,20856.0,0.19072595]
[1673713475578,0.01460216,20860.0,20856.0,0.19072595]
[1673713476092,0.01460216,20860.0,20855.0,0.5795]
[1673713476350,0.01460216,20860.0,20855.0,0.77022595]
[1673713476846,0.01460216,20860.0,20856.0,0.319915]
[1673713477112,0.01460216,20860.0,20857.0,0.688427]
[1673713477359,0.01460216,20860.0,20858.0,0.419883]
[1673713477581,0.01460216,20860.0,20859.0,0.208955]
[1673713478104,0.01460216,20860.0,20856.0,0.1288]
[1673713478357,0.49398816,20860.0,20856.0,0.1288]
[1673713478615,0.49398816,20860.0,20855.0,0.1]
[1673713478874,0.01460216,20860.0,20855.0,1.24969895]
[1673713479108,0.01460216,20860.0,20856.0,0.319915]
[1673713479362,0.97337816,20860.0,20854.0,1.034]
[1673713479866,0.97337816,20860.0,20854.0,1.22472595]
[1673713480901,0.97337816,20860.0,20855.0,0.19072595]
[1673713481921,0.97337816,20860.0,20851.0,1.2117]
[1673713482185,0.97337816,20860.0,20852.0,0.66792764]
[1673713482186,0.128,20859.0,20852.0,0.66792764]
[1673713482494,0.01460216,20860.0,20855.0,0.1288]
[1673713482757,0.01460216,20860.0,20856.0,0.51064095]
[1673713483000,0.01460216,20860.0,20857.0,0.39970295]
[1673713483259,0.01460216,20860.0,20857.0,0.19072595]
[1673713483510,0.01460216,20860.0,20858.0,0.319915]
[1673713483820,1e-08,20860.0,20859.0,0.208923]
[1673713485563,1e-08,20860.0,20857.0,0.1288]
[1673713485819,1e-08,20860.0,20856.0,1.0392]
[1673713486566,0.47939001,20860.0,20856.0,1.0392]
[1673713486807,0.47939001,20860.0,20852.0,0.62222413]
[1673713487047,0.47939001,20860.0,20853.0,0.1]
[1673713487295,0.47939001,20860.0,20853.0,0.29072595]
[1673713487552,0.47939001,20860.0,20854.0,0.19072595]
[1673713487808,0.47939001,20860.0,20855.0,0.19072595]
[1673713488054,0.47939001,20860.0,20856.0,0.19072595]
[1673713488320,1e-08,20860.0,20857.0,0.19072595]
[1673713489087,1e-08,20860.0,20856.0,0.608276]
[1673713489335,1e-08,20860.0,20857.0,0.1]
[1673713489599,1e-08,20860.0,20858.0,0.319915]
[1673713489852,1e-08,20860.0,20857.0,0.1]
[1673713490164,0.0165535,20864.0,20859.0,0.83400169]
[1673713490390,0.01668314,20865.0,20862.0,0.05266053]
[1673713490632,0.01668314,20865.0,20863.0,0.39956895]
[1673713490883,0.01668314,20865.0,20864.0,0.319849]
[1673713492172,0.01168314,20865.0,20862.0,0.15272053]
[1673713492423,0.01168314,20865.0,20863.0,0.319915]
[1673713492703,0.01168314,20865.0,20864.0,0.208782]
[1673713492991,0.01168314,20865.0,20862.0,0.05272053]
[1673713492992,0.49095814,20865.0,20862.0,0.05272053]
[1673713493497,0.97022914,20865.0,20862.0,0.05272053]
[1673713493743,0.3,20864.0,20862.0,0.05272053]
[1673713494208,1.437951,20863.0,20862.0,0.05272053]
[1673713494458,1.737951,20863.0,20862.0,0.05272053]
[1673713495482,0.1288,20862.0,20860.0,6e-05]
[1673713495730,1.566489,20861.0,20860.0,6e-05]
[1673713495982,1.866489,20861.0,20860.0,6e-05]
[1673713497002,1.566489,20861.0,20860.0,6e-05]
[1673713497254,1.438089,20861.0,20860.0,6e-05]
[1673713498267,1.738089,20861.0,20860.0,6e-05]
[1673713498777,0.1,20860.0,20851.0,0.1288]
[1673713499062,0.128,20857.0,20849.0,0.00485142]
[1673713499285,0.95902,20855.0,20849.0,0.00485142]
[1673713500579,0.95902,20855.0,20849.0,0.19557737]
[1673713500580,1.08782,20855.0,20849.0,0.19557737]
[1673713501850,1.08782,20855.0,20849.0,0.19486137]
[1673713502119,0.3,20854.0,20849.0,0.19486137]
[1673713502390,1.438674,20853.0,20849.0,0.00413542]
[1673713502647,0.1281,20850.0,20849.0,0.00413542]
[1673713502950,1.566948,20850.0,20849.0,0.00413542]
[1673713503214,1.566948,20850.0,20844.0,1.57853762]
[1673713503215,0.1,20849.0,20844.0,1.57853762]
[1673713503461,1.439019,20848.0,20844.0,1.57853762]
[1673713503726,0.1288,20845.0,20844.0,1.57853762]
[1673713503989,2.185024,20845.0,20840.0,0.99160701]
[1673713504298,0.3,20844.0,20840.0,0.99160701]
[1673713504569,1.439343,20843.0,20840.0,0.99160701]
[1673713504817,0.1275,20842.0,20840.0,0.99160701]
[1673713505071,1.439469,20841.0,20840.0,0.99160701]
[1673713505644,1.739469,20841.0,20840.0,0.99160701]
[1673713505911,1.739469,20841.0,20840.0,0.98160701]
[1673713506168,1.876069,20841.0,20840.0,0.98160701]
[1673713506417,2.282084,20841.0,20840.0,0.47108201]
[1673713506680,2.282084,20841.0,20839.0,1.32286564]
[1673713506681,2.04164758,20841.0,20839.0,1.32286564]
[1673713506936,0.1288,20840.0,20839.0,1.51359159]
[1673713507210,1.56341758,20841.0,20839.0,1.32286564]
[1673713508947,0.3,20840.0,20839.0,1.32286564]
[1673713509710,1.56341758,20841.0,20839.0,1.32286564]
[1673713509959,1.43461758,20841.0,20839.0,1.32286564]
[1673713510712,0.95479458,20841.0,20839.0,1.32286564]
[1673713513054,0.95479458,20841.0,20839.0,0.00501784]
[1673713513810,0.128,20840.0,20839.0,0.00501784]
[1673713514075,1.387692,20840.0,20839.0,0.00241771]
[1673713514326,1.429322,20840.0,20839.0,0.00241771]
[1673713514610,1.387692,20840.0,20839.0,0.00241771]
[1673713515342,1.087692,20840.0,20839.0,0.00241771]
[1673713515608,1.387692,20840.0,20839.0,0.00241771]
[1673713517216,1.087692,20840.0,20839.0,0.00241771]
[1673713517917,1.387692,20840.0,20839.0,0.00241771]
[1673713519419,1.399632,20845.0,20839.0,0.00241771]
[1673713519420,0.14275514,20850.0,20840.0,0.1]
[1673713519672,0.50068092,20851.0,20841.0,0.99634264]
[1673713519673,0.479643,20849.0,20841.0,0.99634264]
[1673713519918,0.479643,20849.0,20842.0,0.40012095]
[1673713520178,0.479643,20849.0,20843.0,0.19072595]
[1673713520426,0.479643,20849.0,20844.0,0.19072595]
[1673713520687,0.479643,20849.0,20845.0,0.19072595]
[1673713520688,0.1288,20848.0,20845.0,0.19072595]
[1673713520961,0.479639,20849.0,20846.0,0.19072595]
[1673713521197,0.1286,20850.0,20847.0,0.19072595]
[1673713521198,0.479633,20850.0,20847.0,0.19072595]
[1673713521458,0.479633,20850.0,20848.0,0.19072595]
[1673713521931,0.479633,20850.0,20843.0,0.54023548]
[1673713522175,0.479633,20850.0,20843.0,0.19072595]
[1673713522427,0.479633,20850.0,20844.0,0.19072595]
[1673713522673,0.479594,20851.0,20845.0,0.19072595]
[1673713522903,0.479594,20851.0,20846.0,0.51064095]
[1673713523159,0.479594,20851.0,20847.0,0.19072595]
[1673713523666,0.479572,20852.0,20847.0,0.19072595]
[1673713523913,0.479572,20852.0,20846.0,0.2288]
[1673713523914,0.47953,20854.0,20848.0,0.51064095]
[1673713524176,0.479504,20855.0,20849.0,0.39992895]
[1673713524426,0.479504,20855.0,20850.0,0.19072595]
[1673713524671,0.479504,20855.0,20851.0,0.19072595]
[1673713525208,0.47948,20856.0,20851.0,0.19072595]
[1673713525452,0.47948,20856.0,20852.0,0.19072595]
[1673713526191,0.479435,20858.0,20852.0,0.19072595]
[1673713526452,0.479435,20858.0,20853.0,0.19072595]
[1673713526720,0.479435,20858.0,20852.0,0.53936562]
[1673713526721,0.479435,20858.0,20854.0,0.19072595]
[1673713527227,0.479435,20858.0,20847.0,0.7125]
[1673713527473,1.76030548,20857.0,20848.0,0.19072595]
[1673713527716,0.959034,20855.0,20849.0,0.19072595]
[1673713527956,0.959034,20855.0,20847.0,0.7125]
[1673713528206,1.087234,20855.0,20847.0,0.90322595]
[1673713528453,1.087234,20855.0,20848.0,0.19072595]
[1673713528691,0.3,20854.0,20849.0,0.19072595]
[1673713528932,0.959106,20853.0,20849.0,0.19072595]
[1673713529172,0.959106,20853.0,20847.0,0.8125]
[1673713529441,0.1282,20855.0,20848.0,0.66792764]
[1673713529687,0.479392,20860.0,20850.0,1.567643]
[1673713529963,0.49291626,20861.0,20851.0,0.39988795]
[1673713529964,0.479459,20857.0,20851.0,0.39988795]
[1673713530220,0.479459,20857.0,20852.0,0.19072595]
[1673713530466,0.479459,20857.0,20853.0,0.19072595]
[1673713530968,0.479416,20859.0,20853.0,0.19072595]
[1673713531215,0.479416,20859.0,20854.0,0.19072595]
[1673713531453,0.479416,20859.0,20855.0,0.19072595]
[1673713531966,0.958825,20859.0,20851.0,0.1288]
[1673713532221,0.1284,20854.0,20845.0,0.479725]
[1673713532487,0.1284,20854.0,20844.0,1.416645]
[1673713532488,0.959162,20852.0,20844.0,1.416645]
[1673713532734,0.959162,20852.0,20844.0,0.579745]
[1673713532991,0.959162,20852.0,20843.0,0.47976]
[1673713533240,1.087562,20852.0,20846.0,0.02357828]
[1673713533511,0.1283,20849.0,20846.0,0.21430423]
[1673713533773,0.1283,20849.0,20846.0,0.02357828]
[1673713534011,0.479662,20848.0,20846.0,0.02357828]
[1673713535067,0.3,20847.0,20846.0,0.02357828]
[1673713535307,0.779685,20847.0,20846.0,0.02357828]
[1673713535556,0.908185,20847.0,20846.0,0.02357828]
[1673713535806,1.136985,20847.0,20846.0,0.02357828]
[1673713537332,0.736985,20847.0,20846.0,0.02357828]
[1673713537583,0.608485,20847.0,20846.0,0.02357828]
[1673713537834,0.908485,20847.0,20846.0,0.02357828]
[1673713538562,0.908485,20847.0,20846.0,0.01035257]
[1673713538812,2.11936913,20847.0,20846.0,0.01035257]
[1673713539058,2.83982975,20847.0,20846.0,0.00306163]
[1673713539308,3.31703144,20847.0,20846.0,6.163e-05]
[1673713539552,6e-05,20845.0,20839.0,0.00241771]
[1673713539815,0.1285,20841.0,20839.0,0.00241771]
[1673713540059,1.568338,20840.0,20839.0,0.00241771]
[1673713540302,1.868338,20840.0,20839.0,0.00241771]
[1673713541032,1.568338,20840.0,20839.0,0.00241771]
[1673713541276,1.868338,20840.0,20839.0,0.00241771]
[1673713541776,1.568338,20840.0,20839.0,0.00241771]
[1673713542035,1.439538,20840.0,20839.0,0.00241771]
[1673713543058,1.739538,20840.0,20839.0,0.00241771]
[1673713543563,1.439538,20840.0,20839.0,0.00241771]
[1673713546298,0.959692,20840.0,20839.0,0.00241771]
[1673713547289,0.959692,20840.0,20839.0,0.00229771]
[1673713548559,0.479839,20841.0,20839.0,0.00229771]
[1673713549094,0.479809,20842.0,20839.0,0.00229771]
[1673713549355,0.479809,20842.0,20839.0,0.19302366]
[1673713549601,0.479809,20842.0,20839.0,0.00229771]
[1673713551402,0.479809,20842.0,20839.0,0.00213899]
[1673713553372,0.959609,20842.0,20839.0,0.00213899]
[1673713558380,0.3,20841.0,20839.0,0.00213899]
[1673713558690,1.439538,20840.0,20839.0,0.00213899]
[1673713563300,1.439538,20840.0,20839.0,0.0009119]
[1673713563301,2.357584,20840.0,20839.0,0.0009119]
[1673713563547,2.68966853,20840.0,20838.0,0.00518996]
[1673713563818,1.08297799,20839.0,20838.0,0.0008239]
[1673713564086,2.97973152,20839.0,20838.0,0.0008239]
[1673713564339,2.97973152,20839.0,20836.0,0.00518996]
[1673713564340,0.0006456,20837.0,20836.0,0.00518996]
[1673713564590,2.38073476,20837.0,20836.0,0.00518996]
[1673713564836,3.19230693,20837.0,20836.0,0.00518996]
[1673713565123,3.19230693,20837.0,20834.0,0.00588448]
[1673713565124,2.94084169,20837.0,20834.0,0.00588448]
[1673713565406,0.1,20835.0,20834.0,0.00588448]
[1673713565634,2.33767436,20835.0,20831.0,0.00674717]
[1673713565885,0.129,20833.0,20831.0,0.00674717]
[1673713566145,1.706491,20833.0,20831.0,0.00674717]
[1673713566481,1.606491,20833.0,20831.0,0.00674717]
[1673713566719,1.906491,20833.0,20831.0,0.00674717]
[1673713567206,1.869021,20833.0,20831.0,0.00674717]
[1673713567437,1.569021,20833.0,20831.0,0.00674717]
[1673713568637,1.869021,20833.0,20831.0,0.00674717]
[1673713568872,1.569021,20833.0,20831.0,0.00674717]
[1673713569401,1.440021,20833.0,20831.0,0.00674717]
[1673713569887,1.7651592,20833.0,20831.0,0.00674717]
[1673713570124,1.740021,20833.0,20831.0,0.00674717]
[1673713570423,1.569021,20833.0,20831.0,0.00674717]
[1673713570647,1.869021,20833.0,20831.0,0.00674717]
[1673713571616,1.569021,20833.0,20831.0,0.00674717]
[1673713571850,0.479961,20835.0,20832.0,0.27535844]
[1673713572085,0.479961,20835.0,20833.0,0.19072595]
[1673713572324,0.4805686,20837.0,20833.0,0.19072595]
[1673713572573,0.0006456,20837.0,20834.0,0.19072595]
[1673713572850,0.0006456,20837.0,20835.0,0.19072595]
[1673713573561,0.0006456,20837.0,20832.0,0.54726797]
[1673713573832,0.0006456,20837.0,20833.0,0.1289]
[1673713574085,0.0006456,20837.0,20834.0,0.319915]
[1673713574306,0.0006456,20837.0,20835.0,0.2096]
[1673713574548,0.0006456,20837.0,20836.0,0.319882]
[1673713575264,0.1296456,20837.0,20832.0,0.00703249]
[1673713575507,1.439843,20836.0,20832.0,0.00703249]
[1673713576216,1.58260642,20836.0,20832.0,0.00703249]
[1673713577249,0.3,20835.0,20832.0,0.00703249]
[1673713577485,0.1283,20833.0,20832.0,0.00703249]
[1673713577713,0.608307,20833.0,20832.0,0.00703249]
[1673713577958,0.908307,20833.0,20832.0,0.00703249]
[1673713578705,0.608307,20833.0,20832.0,0.00703249]
[1673713578970,0.479984,20834.0,20832.0,0.19775844]
[1673713579435,0.479984,20834.0,20832.0,0.00703249]
[1673713580875,0.479984,20834.0,20832.0,0.00203249]
[1673713581340,0.959968,20834.0,20832.0,0.00203249]
[1673713583332,0.0006456,20837.0,20833.0,0.60510169]
[1673713583563,0.0006456,20837.0,20835.0,0.1284]
[1673713583800,0.0006456,20837.0,20836.0,0.209589]
[1673713584270,0.4805606,20837.0,20836.0,0.209589]
[1673713584513,0.4805606,20837.0,20836.0,0.319915]
[1673713584755,0.4805606,20837.0,20832.0,0.61054449]
[1673713584996,0.9604756,20837.0,20832.0,0.61054449]
[1673713585229,0.9604756,20837.0,20833.0,0.319915]
[1673713585467,0.9604756,20837.0,20834.0,0.209627]
[1673713585920,0.9604756,20837.0,20835.0,0.319882]
[1673713585924,0.0006456,20837.0,20835.0,0.319882]
[1673713586194,0.0006456,20837.0,20834.0,0.19072595]
[1673713586195,0.0006456,20837.0,20836.0,0.209604]
[1673713586447,0.0006456,20837.0,20833.0,0.480003]
[1673713586710,0.9604756,20837.0,20832.0,0.00203249]
[1673713586957,1.44637595,20837.0,20832.0,0.00203249]
[1673713587217,0.3,20836.0,20832.0,0.00203249]
[1673713587471,1.439898,20835.0,20832.0,0.00203249]
[1673713587991,1.568598,20835.0,20832.0,0.00203249]
[1673713588246,0.3,20834.0,20832.0,0.00203249]
[1673713588506,0.480007,20833.0,20832.0,0.00203249]
[1673713589513,0.960014,20833.0,20832.0,0.00203249]
[1673713591788,1.260014,20833.0,20832.0,0.00203249]
[1673713592075,1.40277742,20833.0,20832.0,0.00203249]
[1673713592335,1.40277742,20833.0,20832.0,0.00084999]
[1673713592336,2.95044956,20833.0,20832.0,0.00084999]
[1673713592562,3.51112217,20833.0,20831.0,0.00613237]
[1673713592824,2.0307055,20832.0,20831.0,0.00613237]
[1673713593091,4.50044431,20832.0,20831.0,0.00613237]
[1673713593393,4.50044431,20832.0,20830.0,0.00575992]
[1673713593394,4.9297389,20832.0,20830.0,0.00575992]
[1673713593655,1.15173515,20831.0,20827.0,0.00575992]
[1673713593899,0.27227904,20828.0,20827.0,0.00575992]
[1673713594148,2.01264504,20828.0,20827.0,0.00575992]
[1673713594936,1.569366,20828.0,20827.0,0.00575992]
[1673713595179,1.869366,20828.0,20827.0,0.00575992]
[1673713595444,2.55288052,20828.0,20827.0,0.00575992]
[1673713595985,3.0110781,20828.0,20825.0,0.00765919]
[1673713596231,0.39910921,20826.0,20825.0,0.00765919]
[1673713596458,3.07553436,20826.0,20822.0,0.0067232]
[1673713596702,0.429,20825.0,20822.0,0.0067232]
[1673713596958,1.440645,20824.0,20822.0,0.0067232]
[1673713601947,1.440645,20824.0,20823.0,0.00112089]
[1673713605028,0.480215,20824.0,20823.0,0.07872089]
[1673713605233,0.480196,20825.0,20823.0,0.07872089]
[1673713607702,0.960388,20825.0,20823.0,0.07872089]
[1673713608194,0.960388,20825.0,20823.0,0.00112089]
[1673713608935,0.480188,20826.0,20823.0,0.00112089]
[1673713609181,0.480188,20826.0,20823.0,0.19184684]
[1673713609420,0.480188,20826.0,20824.0,0.319915]
[1673713609669,0.480188,20826.0,20825.0,0.209884]
[1673713610185,0.480188,20826.0,20823.0,0.00112089]
[1673713610931,0.960357,20826.0,20823.0,0.00112089]
[1673713611978,0.960357,20826.0,20824.0,0.319915]
[1673713612232,0.960357,20826.0,20823.0,0.00112089]
[1673713612730,0.960357,20826.0,20824.0,0.319915]
[1673713612980,0.960357,20826.0,20823.0,0.00112089]
[1673713613990,0.960357,20826.0,20824.0,0.319915]
[1673713614484,0.960357,20826.0,20823.0,0.00112089]
[1673713614745,0.480171,20826.0,20823.0,0.00112089]
[1673713614989,0.96034,20826.0,20823.0,0.00112089]
[1673713616000,0.480171,20826.0,20823.0,0.32084684]
[1673713616323,0.480166,20827.0,20824.0,0.319915]
[1673713616506,0.480166,20827.0,20824.0,0.19072595]
[1673713616750,0.480166,20827.0,20823.0,0.13012089]
[1673713617249,0.480166,20827.0,20824.0,0.319915]
[1673713617500,0.480166,20827.0,20825.0,0.209882]
[1673713617749,0.480166,20827.0,20823.0,0.32084684]
[1673713617995,0.480166,20827.0,20823.0,0.13012089]
[1673713618231,0.480166,20827.0,20824.0,0.319915]
[1673713618476,0.480166,20827.0,20823.0,0.13012089]
[1673713618477,0.480166,20827.0,20825.0,0.209882]
[1673713618744,0.480166,20827.0,20823.0,0.13012089]
[1673713619238,0.480166,20827.0,20824.0,0.319915]
[1673713619486,0.480166,20827.0,20825.0,0.209882]
[1673713619734,0.48012,20829.0,20826.0,0.319883]
[1673713619993,1.742295,20830.0,20826.0,0.319883]
[1673713619994,1.742295,20830.0,20827.0,0.20986]
[1673713620237,0.480095,20830.0,20828.0,0.319915]
[1673713620483,0.480095,20830.0,20828.0,0.19072595]
[1673713620734,0.480073,20831.0,20826.0,0.480168]
[1673713620979,0.480073,20831.0,20826.0,1.15104495]
[1673713621223,0.49128128,20832.0,20828.0,0.1289]
[1673713621465,0.49128128,20832.0,20829.0,0.40051195]
[1673713621710,0.49128128,20832.0,20830.0,0.319865]
[1673713621954,0.49128128,20832.0,20828.0,0.609013]
[1673713622207,0.49128128,20832.0,20828.0,0.79973895]
[1673713622453,0.49128128,20832.0,20829.0,0.319915]
[1673713622713,0.49128128,20832.0,20828.0,0.79973895]
[1673713622964,0.49128128,20832.0,20829.0,0.319915]
[1673713623216,0.49128128,20832.0,20830.0,0.209741]
[1673713623461,0.49128128,20832.0,20828.0,0.609013]
[1673713623707,0.97131128,20832.0,20826.0,0.608948]
[1673713623984,0.97131128,20832.0,20825.0,0.1285]
[1673713624247,0.97131128,20832.0,20825.0,0.31922595]
[1673713624498,1.1146258,20832.0,20825.0,0.31922595]
[1673713625027,1.1146258,20832.0,20826.0,0.19072595]
[1673713625537,0.14331452,20831.0,20826.0,0.19072595]
[1673713625783,1.440257,20830.0,20826.0,0.19062099]
[1673713626020,1.440257,20830.0,20827.0,0.00051437]
[1673713626329,1.440257,20830.0,20825.0,0.1285]
[1673713626803,1.58357152,20830.0,20825.0,0.1285]
[1673713627058,1.440257,20830.0,20825.0,0.31922595]
[1673713627545,1.58357152,20830.0,20825.0,0.31922595]
[1673713628299,1.58357152,20830.0,20825.0,0.55922595]
[1673713628805,1.7985433,20830.0,20825.0,0.43072595]
[1673713629315,1.91340956,20830.0,20825.0,0.43072595]
[1673713629549,0.14331452,20829.0,20825.0,0.43072595]
[1673713629791,1.440381,20828.0,20825.0,0.24]
[1673713630040,1.440381,20828.0,20826.0,0.00051439]
[1673713630778,1.440381,20828.0,20825.0,0.24]
[1673713631521,1.58369552,20828.0,20825.0,0.24]
[1673713632268,1.58369552,20828.0,20825.0,0.253697]
[1673713632503,1.87604662,20828.0,20825.0,0.253697]
[1673713632745,1.58369552,20828.0,20825.0,0.253697]
[1673713632991,1.7986673,20828.0,20825.0,0.253697]
[1673713633252,0.14331452,20827.0,20825.0,0.253697]
[1673713633497,0.960338,20826.0,20825.0,0.253697]
[1673713634752,1.30370978,20826.0,20825.0,0.253697]
[1673713634998,1.30370978,20826.0,20825.0,0.25227321]
[1673713634999,1.96658569,20826.0,20825.0,0.25227321]
[1673713635500,2.7896363,20826.0,20825.0,0.25227321]
[1673713635741,2.25388191,20826.0,20825.0,0.25227321]
[1673713635988,2.80217988,20826.0,20825.0,0.25227321]
[1673713636256,1.96658569,20826.0,20825.0,0.25227321]
[1673713636515,2.78059784,20826.0,20825.0,0.14265556]
[1673713638013,3.20989243,20826.0,20825.0,0.14265556]
[1673713638273,3.33889243,20826.0,20825.0,0.14265556]
[1673713638524,4.93479629,20826.0,20822.0,0.0067232]
[1673713638774,0.55090785,20823.0,20820.0,0.0079868]
[1673713639062,3.20859008,20822.0,20818.0,0.008555]
[1673713639305,0.50246437,20819.0,20818.0,0.008555]
[1673713639552,0.50246437,20819.0,20814.0,0.0036033]
[1673713639553,0.10855,20818.0,20814.0,0.0036033]
[1673713639804,0.27288108,20815.0,20814.0,0.0036033]
[1673713640055,1.441266,20815.0,20814.0,0.0036033]
[1673713640299,0.960844,20815.0,20814.0,0.0036033]
[1673713641773,0.480412,20816.0,20814.0,0.43432925]
[1673713642019,0.14358108,20818.0,20814.0,0.43432925]
[1673713642020,0.480398,20817.0,20814.0,0.43432925]
[1673713642259,0.48037,20818.0,20815.0,0.319915]
[1673713642510,0.48037,20818.0,20816.0,0.210138]
[1673713642765,0.48037,20818.0,20817.0,0.319882]
[1673713643014,0.48037,20818.0,20814.0,0.43432925]